Workbook

Sheet Pénzforgalmi kimutatás
B1: KészpénzforgalomKimutatás
B3: Pénzügyi év kezdete: | D3: Induláskor (előtte) | E3: =UPPER(TEXT(PénzügyiÉvKezdete,"hhh")) -> JAN | F3: =UPPER(TEXT(EOMONTH(PénzügyiÉvKezdete,1),"hhh")) -> FEBR | G3: =UPPER(TEXT(EOMONTH(PénzügyiÉvKezdete,2),"hhh")) -> MÁRC | H3: =UPPER(TEXT(EOMONTH(PénzügyiÉvKezdete,3),"hhh")) -> ÁPR | I3: =UPPER(TEXT(EOMONTH(PénzügyiÉvKezdete,4),"hhh")) -> MÁJ | J3: =UPPER(TEXT(EOMONTH(PénzügyiÉvKezdete,5),"hhh")) -> JÚN | K3: =UPPER(TEXT(EOMONTH(PénzügyiÉvKezdete,6),"hhh")) -> JÚL | L3: =UPPER(TEXT(EOMONTH(PénzügyiÉvKezdete,7),"hhh")) -> AUG | M3: =UPPER(TEXT(EOMONTH(PénzügyiÉvKezdete,8),"hhh")) -> SZEPT | N3: =UPPER(TEXT(EOMONTH(PénzügyiÉvKezdete,9),"hhh")) -> OKT | O3: =UPPER(TEXT(EOMONTH(PénzügyiÉvKezdete,10),"hhh")) -> NOV | P3: =UPPER(TEXT(EOMONTH(PénzügyiÉvKezdete,11),"hhh")) -> DEC | R3: Összesen
B4: 2012-01-05 | D4: Becsült | E4: =PénzügyiÉvKezdete -> 2012-01-05 | F4: =EOMONTH(E4,0)+DAY(PénzügyiÉvKezdete) -> 2012-02-05 | G4: 2012-03-05 | H4: 2012-04-05 | I4: 2012-05-05 | J4: 2012-06-05 | K4: 2012-07-05 | L4: 2012-08-05 | M4: 2012-09-05 | N4: 2012-10-05 | O4: 2012-11-05 | P4: 2012-12-05 | R4: Becsült tétel
B6: Készpénzállomány (hó elején) | D6: 100 | E6: =D48 -> 100 | F6: =E48 -> -125 | G6: 45 | H6: -1 | I6: 224 | J6: 269 | K6: 269 | L6: 269 | M6: 269 | N6: 269 | O6: 269 | P6: 269 | R6: =P6 -> 269
B8: Készpénzbevételek
B9: Készpénzes értékesítések | E9: 125 | F9: 120 | G9: 130 | H9: 100 | R9: =SUM(Készpénznyugták[[#This Row],[0. időszak]:[12. időszak]]) -> 475
B10: Készpénzfelvét banki folyószámláról | H10: 75 | I10: 45 | R10: =SUM(Készpénznyugták[[#This Row],[0. időszak]:[12. időszak]]) -> 120
B11: Hitelek/egyéb készpénzbevételek | E11: 50 | F11: 50 | G11: 50 | H11: 50 | R11: =SUM(Készpénznyugták[[#This Row],[0. időszak]:[12. időszak]]) -> 200
B12: Összesen | D12: =SUBTOTAL(109,Készpénznyugták[0. időszak]) -> 0 | E12: =SUBTOTAL(109,Készpénznyugták[1. időszak]) -> 175 | F12: =SUBTOTAL(109,Készpénznyugták[2. időszak]) -> 170 | G12: =SUBTOTAL(109,Készpénznyugták[3. időszak]) -> 180 | H12: =SUBTOTAL(109,Készpénznyugták[4. időszak]) -> 225 | I12: =SUBTOTAL(109,Készpénznyugták[5. időszak]) -> 45 | J12: =SUBTOTAL(109,Készpénznyugták[6. időszak]) -> 0 | K12: =SUBTOTAL(109,Készpénznyugták[7. időszak]) -> 0 | L12: =SUBTOTAL(109,Készpénznyugták[8. időszak]) -> 0 | M12: =SUBTOTAL(109,Készpénznyugták[9. időszak]) -> 0 | N12: =SUBTOTAL(109,Készpénznyugták[10. időszak]) -> 0 | O12: =SUBTOTAL(109,Készpénznyugták[11. időszak]) -> 0 | P12: =SUBTOTAL(109,Készpénznyugták[12. időszak]) -> 0 | R12: =SUBTOTAL(109,Készpénznyugták[Összesen]) -> 795
B13: Rendelkezésre álló készpénz összesen (készpénzes kiadások előtt) | D13: =D6+SUM(Készpénznyugták[0. időszak]) -> 100 | E13: =E6+SUM(Készpénznyugták[1. időszak]) -> 275 | F13: =F6+SUM(Készpénznyugták[2. időszak]) -> 45 | G13: =G6+SUM(Készpénznyugták[3. időszak]) -> 225 | H13: =H6+SUM(Készpénznyugták[4. időszak]) -> 224 | I13: =I6+SUM(Készpénznyugták[5. időszak]) -> 269 | J13: =J6+SUM(Készpénznyugták[6. időszak]) -> 269 | K13: =K6+SUM(Készpénznyugták[7. időszak]) -> 269 | L13: =L6+SUM(Készpénznyugták[8. időszak]) -> 269 | M13: =M6+SUM(Készpénznyugták[9. időszak]) -> 269 | N13: =N6+SUM(Készpénznyugták[10. időszak]) -> 269 | O13: =O6+SUM(Készpénznyugták[11. időszak]) -> 269 | P13: =P6+SUM(Készpénznyugták[12. időszak]) -> 269 | R13: =R6+SUM(Készpénznyugták[Összesen]) -> 1064
B15: Készpénzkifizetések
B16: Beszerzések (áru) | E16: 400 | G16: 226 | R16: =SUM(KifizetettKészpénz[[#This Row],[0. időszak]:[12. időszak]]) -> 626
B17: Beszerzések (egyéb, adja meg) | R17: =SUM(KifizetettKészpénz[[#This Row],[0. időszak]:[12. időszak]]) -> 0
B18: Beszerzések (egyéb, adja meg) | R18: =SUM(KifizetettKészpénz[[#This Row],[0. időszak]:[12. időszak]]) -> 0
B19: Bruttó bérek (pontos kifizetések) | R19: =SUM(KifizetettKészpénz[[#This Row],[0. időszak]:[12. időszak]]) -> 0
B20: Bérekkel kapcsolatos kiadások (adók stb.) | R20: =SUM(KifizetettKészpénz[[#This Row],[0. időszak]:[12. időszak]]) -> 0
B21: Külső szolgáltatások | R21: =SUM(KifizetettKészpénz[[#This Row],[0. időszak]:[12. időszak]]) -> 0
B22: Kellékek (irodai és működési) | R22: =SUM(KifizetettKészpénz[[#This Row],[0. időszak]:[12. időszak]]) -> 0
B23: Javítás és karbantartás | R23: =SUM(KifizetettKészpénz[[#This Row],[0. időszak]:[12. időszak]]) -> 0
B24: Hirdetés | R24: =SUM(KifizetettKészpénz[[#This Row],[0. időszak]:[12. időszak]]) -> 0
B25: Autó, szállítás, utazás | R25: =SUM(KifizetettKészpénz[[#This Row],[0. időszak]:[12. időszak]]) -> 0
B26: Könyvelés és jogi szolgáltatások | R26: =SUM(KifizetettKészpénz[[#This Row],[0. időszak]:[12. időszak]]) -> 0
B27: Bérleti díj | R27: =SUM(KifizetettKészpénz[[#This Row],[0. időszak]:[12. időszak]]) -> 0
B28: Telefon | R28: =SUM(KifizetettKészpénz[[#This Row],[0. időszak]:[12. időszak]]) -> 0
B29: Közüzemi díjak | R29: =SUM(KifizetettKészpénz[[#This Row],[0. időszak]:[12. időszak]]) -> 0
B30: Biztosítás | R30: =SUM(KifizetettKészpénz[[#This Row],[0. időszak]:[12. időszak]]) -> 0
B31: Adó (ingatlan stb.) | R31: =SUM(KifizetettKészpénz[[#This Row],[0. időszak]:[12. időszak]]) -> 0
B32: Kamat | R32: =SUM(KifizetettKészpénz[[#This Row],[0. időszak]:[12. időszak]]) -> 0
B33: Egyéb kiadások (adja meg) | R33: =SUM(KifizetettKészpénz[[#This Row],[0. időszak]:[12. időszak]]) -> 0
B34: Egyéb (adja meg) | R34: =SUM(KifizetettKészpénz[[#This Row],[0. időszak]:[12. időszak]]) -> 0
B35: Egyéb (adja meg) | R35: =SUM(KifizetettKészpénz[[#This Row],[0. időszak]:[12. időszak]]) -> 0
B36: Vegyes | R36: =SUM(KifizetettKészpénz[[#This Row],[0. időszak]:[12. időszak]]) -> 0
B37: Összesen | D37: =SUBTOTAL(109,KifizetettKészpénz[0. időszak]) -> 0 | E37: =SUBTOTAL(109,KifizetettKészpénz[1. időszak]) -> 400 | F37: =SUBTOTAL(109,KifizetettKészpénz[2. időszak]) -> 0 | G37: =SUBTOTAL(109,KifizetettKészpénz[3. időszak]) -> 226 | H37: =SUBTOTAL(109,KifizetettKészpénz[4. időszak]) -> 0 | I37: =SUBTOTAL(109,KifizetettKészpénz[5. időszak]) -> 0 | J37: =SUBTOTAL(109,KifizetettKészpénz[6. időszak]) -> 0 | K37: =SUBTOTAL(109,KifizetettKészpénz[7. időszak]) -> 0 | L37: =SUBTOTAL(109,KifizetettKészpénz[8. időszak]) -> 0 | M37: =SUBTOTAL(109,KifizetettKészpénz[9. időszak]) -> 0 | N37: =SUBTOTAL(109,KifizetettKészpénz[10. időszak]) -> 0 | O37: =SUBTOTAL(109,KifizetettKészpénz[11. időszak]) -> 0 | P37: =SUBTOTAL(109,KifizetettKészpénz[12. időszak]) -> 0 | R37: =SUBTOTAL(109,KifizetettKészpénz[Összesen]) -> 626
B39: Készpénzkifizetések (nem nyereség és veszteség)
B40: Hitel tőketörlesztése | R40: =SUM(KifizetettKészpénz2[[#This Row],[0. időszak]:[12. időszak]]) -> 0
B41: Befektetési beszerzés (adja meg) | R41: =SUM(KifizetettKészpénz2[[#This Row],[0. időszak]:[12. időszak]]) -> 0
B42: Egyéb indulási költségek | R42: =SUM(KifizetettKészpénz2[[#This Row],[0. időszak]:[12. időszak]]) -> 0
B43: Tartalék és/vagy zálog | R43: =SUM(KifizetettKészpénz2[[#This Row],[0. időszak]:[12. időszak]]) -> 0
B44: Tulajdonosi készpénzkivétel | R44: =SUM(KifizetettKészpénz2[[#This Row],[0. időszak]:[12. időszak]]) -> 0
B45: Összesen | D45: =SUBTOTAL(109,KifizetettKészpénz2[0. időszak]) -> 0 | E45: =SUBTOTAL(109,KifizetettKészpénz2[1. időszak]) -> 0 | F45: =SUBTOTAL(109,KifizetettKészpénz2[2. időszak]) -> 0 | G45: =SUBTOTAL(109,KifizetettKészpénz2[3. időszak]) -> 0 | H45: =SUBTOTAL(109,KifizetettKészpénz2[4. időszak]) -> 0 | I45: =SUBTOTAL(109,KifizetettKészpénz2[5. időszak]) -> 0 | J45: =SUBTOTAL(109,KifizetettKészpénz2[6. időszak]) -> 0 | K45: =SUBTOTAL(109,KifizetettKészpénz2[7. időszak]) -> 0 | L45: =SUBTOTAL(109,KifizetettKészpénz2[8. időszak]) -> 0 | M45: =SUBTOTAL(109,KifizetettKészpénz2[9. időszak]) -> 0 | N45: =SUBTOTAL(109,KifizetettKészpénz2[10. időszak]) -> 0 | O45: =SUBTOTAL(109,KifizetettKészpénz2[11. időszak]) -> 0 | P45: =SUBTOTAL(109,KifizetettKészpénz2[12. időszak]) -> 0 | R45: =SUBTOTAL(109,KifizetettKészpénz2[Összesen]) -> 0
B46: Készpénzkifizetések összesen | D46: =SUM(KifizetettKészpénz[0. időszak],KifizetettKészpénz2[0. időszak]) -> 0 | E46: =SUM(KifizetettKészpénz[1. időszak],KifizetettKészpénz2[1. időszak]) -> 400 | F46: =SUM(KifizetettKészpénz[2. időszak],KifizetettKészpénz2[2. időszak]) -> 0 | G46: =SUM(KifizetettKészpénz[3. időszak],KifizetettKészpénz2[3. időszak]) -> 226 | H46: =SUM(KifizetettKészpénz[4. időszak],KifizetettKészpénz2[4. időszak]) -> 0 | I46: =SUM(KifizetettKészpénz[5. időszak],KifizetettKészpénz2[5. időszak]) -> 0 | J46: =SUM(KifizetettKészpénz[6. időszak],KifizetettKészpénz2[6. időszak]) -> 0 | K46: =SUM(KifizetettKészpénz[7. időszak],KifizetettKészpénz2[7. időszak]) -> 0 | L46: =SUM(KifizetettKészpénz[8. időszak],KifizetettKészpénz2[8. időszak]) -> 0 | M46: =SUM(KifizetettKészpénz[9. időszak],KifizetettKészpénz2[9. időszak]) -> 0 | N46: =SUM(KifizetettKészpénz[10. időszak],KifizetettKészpénz2[10. időszak]) -> 0 | O46: =SUM(KifizetettKészpénz[11. időszak],KifizetettKészpénz2[11. időszak]) -> 0 | P46: =SUM(KifizetettKészpénz[12. időszak],KifizetettKészpénz2[12. időszak]) -> 0 | R46: =SUM(KifizetettKészpénz[Összesen],KifizetettKészpénz2[Összesen]) -> 626
B48: Készpénzállomány (hó végén) | D48: =D13-D46 -> 100 | E48: -125 | F48: 45 | G48: -1 | H48: 224 | I48: 269 | J48: 269 | K48: 269 | L48: 269 | M48: 269 | N48: 269 | O48: 269 | P48: 269 | R48: =R13-R46 -> 438
